[Event "4NCL 2021-22"]
[Site "England"]
[Date "2022.04.30"]
[Round "7.20"]
[White "Morrison, Graham"]
[Black "Grieve, Harry"]
[Result "0-1"]
[ECO "A92"]
[WhiteElo "2258"]
[BlackElo "2384"]
[Annotator "TA RC"]
[PlyCount "106"]
[EventDate "2021.11.27"]
[EventType "team-tourn"]
[EventCountry "ENG"]
[SourceTitle "playchess.com"]
[Source "ChessBase"]
[SourceQuality "1"]
[TimeControl "40/6000+30:3000+30"]

{[%evp 10,106,41,34,52,6,21,16,42,38,31,17,27,11,37,35,39,0,6,20,8,0,0,0,0,-5,-7,0,2,0,0,0,0,0,0,-88,-93,-78,-89,-100,-55,-119,-122,-110,-100,-90,-65,-181,-179,-181,-181,-181,-182,-197,-110,-182,-182,-188,-127,-189,-164,-179,0,-190,-181,-199,-187,-189,-202,-191,-200,-223,-232,-219,-228,-216,-211,-198,-195,-283,-281,-289,-289,-361,-353,-437,-407,-511,-493,-480,-478,-478,-478,-1444,-1441,-1419,-1407,-1260,-1168]} 1. d4 {[%emt 0:00:06]} e6 {[%emt 0:00:07]} 2. c4 {[%emt 0:00:09]} f5 {[%emt 0:00:06]} 3. g3 {[%emt 0:00:17]} Nf6 {[%emt 0:00:06]} 4. Bg2 {[%emt 0:00:09]} d5 {[%emt 0:00:07]} 5. Nf3 {[%emt 0:00:16]} Be7 {[%emt 0:00:15]} 6. O-O {[%emt 0:00:15]} Ne4 $1 {[%emt 0:00:08][%mdl 4] is more profitable than 6...0-0 at the moment. A92: Classical Dutch: Classical Stonewall (with ...Be7): Early deviations.} 7. Nfd2 {[%emt 0:03:47]} (7. Nc3 $14 {might be stronger.}) 7... O-O $11 {[%emt 0:06:43]} 8. Nxe4 {[%emt 0:03:21]} fxe4 {[%emt 0:00:06] The position is equal.} 9. Nc3 {[%emt 0:00:43]} c6 {[%emt 0:01:08]} 10. Qb3 {[%emt 0:05:05]} Kh8 {[%emt 0:08:50]} 11. Be3 {[%emt 0:05:17] [#]} b6 $146 {[%emt 0:07:16]} ({Predecessor:} 11... Nd7 12. f3 exf3 13. exf3 Nb6 14. c5 Nc4 15. Rfe1 e5 16. Bf2 Bf6 17. Rad1 exd4 18. Bxd4 Bxd4+ 19. Rxd4 {0-1 (36) Manakov,M (2295)-Wach,M (2380) Bayern 1995}) 12. f3 {[%emt 0:07:50]} exf3 {[%emt 0:00:06]} 13. Bxf3 {[%emt 0:03:14]} ({Reject} 13. exf3 Ba6 14. Rfe1 Bxc4 $11) 13... Ba6 {[%emt 0:02:06]} 14. cxd5 {[%emt 0:06:14]} exd5 {[%emt 0:00:06]} 15. Rad1 {[%emt 0:11:40]} Nd7 {[%emt 0:04:04]} 16. Rf2 {[%emt 0:07:11]} Bd6 {[%emt 0:17:10]} 17. Qa4 {[%emt 0:05:29]} Bb7 {[%emt 0:00:27]} 18. Qc2 {[%emt 0:00:30]} Qc7 {[%emt 0:07:37]} 19. Bc1 {[%emt 0:05:37]} Nf6 {[%emt 0:04:27]} 20. Rdf1 {[%emt 0:12:07]} ({Don't play} 20. e4 {[#]} Bxg3 $1 {[%mdl 512]} 21. Re2 (21. hxg3 $2 Qxg3+ 22. Rg2 Qxf3 $19) 21... dxe4 $1 22. Nxe4 Bd6 23. Nxd6 Qxd6 $17) 20... Ba6 {[%emt 0:09:08]} 21. Qa4 {[%emt 0:10:17]} Qb7 {[%emt 0:05:52]} 22. Bf4 {[%emt 0:05:08]} (22. Bg2 $11 {keeps the balance.}) 22... Bxf4 $17 {[%emt 0:01:42]} 23. gxf4 {[%emt 0:00:03]} Rae8 {[%emt 0:00:07]} 24. Qc2 {[%emt 0:02:55]} Qe7 {[%emt 0:05:13]} 25. Qd2 {[%emt 0:02:50]} (25. Qa4 $15 Qb7 26. Rg2) 25... Bc8 {[%emt 0:03:37][%cal Ba6c8,Bc8g4,Bg4f5][%mdl 32]} 26. Re1 {[%emt 0:01:33]} Bg4 {[%emt 0:04:32]} 27. Bg2 {[%emt 0:01:18]} Qf7 {[%emt 0:02:32]} 28. h3 {[%emt 0:03:43]} (28. e4 $15) 28... Bf5 $19 {[%emt 0:00:57]} 29. e3 {[%emt 0:00:40]} Re6 {[%emt 0:01:33]} 30. Rf3 {[%emt 0:01:49]} Rfe8 {[%emt 0:00:21]} 31. Kh2 {[%emt 0:01:03]} Qh5 {[%emt 0:00:39]} (31... a5 $19 32. a4 h6) 32. Kg1 {[%emt 0:01:00]} (32. Rg3 $17 Qh4 33. Bf3) 32... h6 {[%emt 0:04:21]} 33. Rg3 {[%emt 0:00:46]} R8e7 {[%emt 0:01:02]} ({Better is} 33... Qh4 $19 34. Rf3 Nh5) 34. Qe2 {[%emt 0:01:44]} (34. Qf2 $17) 34... Qe8 {[%emt 0:01:24] Threatens to win with ...Nh5.} 35. Qd2 {[%emt 0:00:22]} Qh5 {[%emt 0:07:09]} 36. Qe2 $1 {[%emt 0:00:20]} Qh4 {[%emt 0:00:01]} 37. Qf2 {[%emt 0:00:12]} Nh5 {[%emt 0:02:33]} 38. Rf3 {[%emt 0:00:11]} Qxf2+ {[%emt 0:00:03]} 39. Kxf2 {[%emt 0:00:10]} Be4 {[%emt 0:00:01]} 40. Nxe4 {[%emt 0:01:54]} dxe4 {[%emt 0:00:05][%mdl 64] Trapped Piece} 41. Rg3 {[%emt 0:50:15]} Nxg3 {[%emt 0:50:02]} 42. Kxg3 {[%emt 0:00:08][%mdl 4096] Endgame KRR-KRB} Rg6+ {[%emt 0:05:21]} 43. Kf2 {[%emt 0:01:47]} Rf6 {[%emt 0:00:08]} 44. Ke2 {[%emt 0:00:00]} (44. Kg3 $142) 44... Rf5 {[%emt 0:00:00]} 45. Rc1 {[%emt 0:00:00]} c5 {[%emt 0:00:00]} 46. Rc4 {[%emt 0:00:00]} g5 {[%emt 0:00:00]} 47. dxc5 {[%emt 0:00:00]} Rxc5 {[%emt 0:00:00]} 48. Rxe4 {[%emt 0:00:00]} Rc2+ {[%emt 0:00:00] Black is clearly winning.} 49. Kd3 {[%emt 0:00:00]} Rxe4 {[%emt 0:00:00]} 50. Bxe4 {[%emt 0:00:00]} Rxb2 {[%emt 0:00:00] White must now prevent ...gxf4.} 51. Bd5 {[%emt 0:00:00]} (51. fxg5 $142 hxg5 52. Bd5) 51... gxf4 {[%emt 0:00:00]} 52. exf4 {[%emt 0:00:00]} Kg7 {[%emt 0:00:00]} 53. Ke4 {[%emt 0:00:00]} Rh2 {[%emt 0:00:00] Weighted Error Value: White=0.31/Black=0.09 (flawless)} 0-1

[Event "4NCL 2021-22"]
[Site "England"]
[Date "2022.04.30"]
[Round "7.21"]
[White "Davies, Nigel R"]
[Black "Berry, Neil"]
[Result "0-1"]
[ECO "A07"]
[WhiteElo "2462"]
[BlackElo "2267"]
[Annotator "TA"]
[PlyCount "88"]
[EventDate "2021.11.27"]
[EventType "team-tourn"]
[EventCountry "ENG"]
[SourceTitle "playchess.com"]
[Source "ChessBase"]
[SourceQuality "1"]
[TimeControl "40/6000+30:3000+30"]

{[%evp 11,88,-14,16,6,10,0,1,0,0,0,0,0,0,0,7,0,-8,0,0,-8,-3,-3,0,-27,-24,-29,-16,-31,-21,-50,15,7,41,18,22,-38,-45,-25,-47,-56,0,-108,-114,-196,-200,-185,-180,-170,-135,-122,-134,-85,-112,-169,-144,-271,-170,-168,-177,-166,-172,-185,-186,-566,-556,-554,-550,-539,-502,-681,-656,-1608,-1378,-29987,-29988,-29988,-29988,-29994,-29995]} 1. Nf3 {[%emt 0:00:03]} d5 {[%emt 0:02:09]} 2. g3 {[%emt 0:00:14]} Nf6 {[%emt 0:00:30]} 3. Bg2 {[%emt 0:00:09]} e6 {[%emt 0:00:29]} 4. O-O {[%emt 0:00:11]} Be7 {[%emt 0:01:20]} 5. d3 {[%emt 0:01:21]} O-O {[%emt 0:00:41]} 6. Nbd2 {[%emt 0:00:05]} Nc6 {[%emt 0:00:59]} 7. c3 {[%emt 0:00:58] A07: Réti Opening: New York and Capablanca Systems.} e5 {[%emt 0:04:07]} 8. Qc2 {[%emt 0:00:45]} a5 {[%emt 0:00:58] Inhibits b4.} 9. e4 {[%emt 0:02:38] The position is equal.} dxe4 {[%emt 0:01:23]} 10. dxe4 {[%emt 0:00:07]} Be6 {[%emt 0:00:33] Prevents Nc4.} 11. Ng5 {[%emt 0:02:20]} Bd7 {[%emt 0:02:57]} 12. Nc4 {[%emt 0:00:40]} Bc5 {[%emt 0:02:51] [#]} 13. h3 $146 {[%emt 0:10:48]} ({Predecessor:} 13. Be3 Qe7 14. Bxc5 Qxc5 15. Ne3 h6 16. Nf3 Be6 17. Nh4 Rfd8 18. Rfd1 g6 19. Qe2 Rxd1+ 20. Rxd1 {½-½ (29) Wiander,M (2226)-Subramanian,A (1963) Vaxjo 2016}) 13... h6 {[%emt 0:05:14] aiming for ...b5.} 14. Nf3 {[%emt 0:00:08][%cal Bg5f3,Bf3h4,Bh4f5][%mdl 32]} Qe7 $36 {[%emt 0:00:11][%mdl 2048] White is under pressure.} 15. Nh4 {[%emt 0:02:28]} Rfd8 {[%emt 0:08:34]} 16. Nf5 {[%emt 0:07:19]} Qf8 {[%emt 0:02:59]} 17. Kh2 {[%emt 0:14:02]} Be6 {[%emt 0:06:40]} 18. Qe2 {[%emt 0:08:05]} Rd7 {[%emt 0:16:37]} 19. Nce3 {[%emt 0:13:09]} Rad8 {[%emt 0:06:17]} 20. f4 {[%emt 0:04:17][%cal Of5h6]} exf4 {[%emt 0:24:22]} (20... Rd3 $1 $15) 21. gxf4 $11 {[%emt 0:00:18]} g6 {[%emt 0:03:50]} 22. Ng3 {[%emt 0:00:51] And now f5 would win.} h5 $1 {[%emt 0:05:37][%cal Bh6h5,Bh5h4][%mdl 32]} (22... Rd3 23. e5 (23. Nd5 Nxd5 24. Qxd3 Nxf4 $17) 23... Nd5 24. Bxd5 R8xd5 25. Nxd5 Rxd5 26. Ne4 $16) 23. e5 {[%emt 0:11:31] [#]} ({Better is} 23. f5 $11 h4 24. fxe6 hxg3+ 25. Kh1 fxe6 26. Ng4 Nxg4 27. Qxg4 (27. Rxf8+ Kxf8 28. Bf1 Rf7 $14)) 23... h4 $1 $15 {[%emt 0:05:48]} 24. Ne4 {[%emt 0:00:10]} Nxe4 {[%emt 0:00:29]} 25. Bxe4 {[%emt 0:00:11]} Qg7 {[%emt 0:04:26]} (25... Ne7 $1 $15) 26. Ng2 {[%emt 0:08:36] [#]} (26. Ng4 $11 Bxg4 27. Qxg4) 26... Ne7 $1 $17 {[%emt 0:00:54] Hoping for ...Nf5. Black is more active.} 27. b4 {[%emt 0:04:51]} (27. Be3 $17 Bxe3 28. Qxe3) 27... axb4 $19 {[%emt 0:00:32]} 28. cxb4 {[%emt 0:00:06]} Bd4 {[%emt 0:00:25]} 29. Rb1 {[%emt 0:00:09]} Nf5 {[%emt 0:00:48]} 30. Bxf5 {[%emt 0:04:06]} Bxf5 {[%emt 0:00:05][%cal Be6f5,Bf5d3,Bd3c4][%mdl 32]} 31. Rb3 {[%emt 0:00:04]} Bb6 {[%emt 0:00:13] A strong pair of Bishops.} 32. Qe1 {[%emt 0:02:41]} (32. a4 $17) 32... Bd3 {[%emt 0:00:53]} 33. Rf3 {[%emt 0:00:15]} (33. Rh1 $17 {was forced.}) 33... Bc4 {[%emt 0:00:34]} 34. Rbc3 {[%emt 0:00:18] [#]} Rd1 $1 {[%emt 0:00:48][%cal Bd7d1,Bd1f1,Bf1f2,Bf2g2,Bg2a2][%mdl 32]} 35. Qxh4 {[%emt 0:00:07] [#]} Bg1+ $1 {[%emt 0:01:17]} ({And not} 35... Bxa2 36. Be3 $11) 36. Kg3 {[%emt 0:00:06]} Be2 {[%emt 0:00:15]} 37. Rxc7 $2 {[%emt 0:01:48]} (37. Rfe3 {is more resistant.} Bxe3 38. Bxe3) 37... Bxf3 {[%emt 0:00:19]} ({Weaker is} 37... Bh2+ 38. Kxh2 Bxf3 39. e6 $15 (39. Ne3 $2 g5 $19)) 38. Kxf3 {[%emt 0:00:23]} Rf1+ {[%emt 0:01:01]} 39. Ke2 {[%emt 0:00:33]} Rf2+ {[%emt 0:00:10][%mdl 64] Skewer, Double Attack} 40. Ke1 {[%emt 0:00:06]} Qf8 {[%emt 0:00:44]} 41. f5 {[%emt 1:02:38][%cal Of5g6] Threatening mate with fxg6!} Rxg2 {[%emt 0:04:45]} 42. Kf1 {[%emt 0:00:00]} Rxa2 {[%emt 0:06:55] Black mates.} 43. Qg4 {[%emt 0:00:00]} Bb6 {[%emt 0:03:06]} 44. Rxb7 {[%emt 0:00:00] [#]} Qxb4 $1 {[%emt 0:02:14][%mdl 512] Weighted Error Value: White=0.71/Black=0.10 (very precise)} 0-1

[Event "4NCL 2021-22"]
[Site "England"]
[Date "2022.04.30"]
[Round "7.22"]
[White "White, Stuart A"]
[Black "Golding, Alex"]
[Result "0-1"]
[ECO "D37"]
[WhiteElo "2041"]
[BlackElo "2331"]
[Annotator "TA"]
[PlyCount "100"]
[EventDate "2021.11.27"]
[EventType "team-tourn"]
[EventCountry "ENG"]
[SourceTitle "playchess.com"]
[Source "ChessBase"]
[SourceQuality "1"]
[TimeControl "40/6000+30:3000+30"]

{[%evp 9,100,16,15,14,79,80,84,81,96,89,133,118,153,153,162,99,96,78,81,82,91,93,87,79,79,83,120,91,100,88,93,26,46,0,0,0,14,0,0,0,18,16,62,62,62,62,152,147,156,155,145,154,158,146,145,147,150,137,153,152,157,76,102,78,83,0,0,0,12,14,10,0,0,0,12,-8,-11,-269,-268,-265,-262,-262,-262,-250,-250,-29991,-29992,-29995,-29996,-29996,-29997,-29997,-29998]} 1. d4 {[%emt 0:00:11]} Nf6 {[%emt 0:00:01]} 2. c4 {[%emt 0:00:06]} e6 {[%emt 0:00:02]} 3. Nf3 {[%emt 0:00:05]} d5 {[%emt 0:00:11]} 4. Nc3 {[%emt 0:00:07]} a6 {[%emt 0:00:51]} 5. cxd5 {[%emt 0:02:38]} exd5 {[%emt 0:00:10]} 6. Bg5 {[%emt 0:00:56] D37: Queen's Gambit Declined: 5 Bf4.} h6 {[%emt 0:04:18]} (6... Be7 $11) 7. Bxf6 $16 {[%emt 0:04:36]} gxf6 {[%emt 0:00:03]} 8. e3 {[%emt 0:01:51] [#] White is better.} c6 $146 {[%emt 0:01:15]} ({Predecessor:} 8... Nc6 9. a3 Rb8 10. Qc2 Ne7 11. Bd3 Rg8 12. Nh4 b5 13. Ne2 c5 14. dxc5 Nc6 {1-0 (34) Volak,M (2200)-Kopecek,I (1966) Brno 2010}) 9. Bd3 {[%emt 0:04:37]} f5 {[%emt 0:11:22]} 10. g3 {[%emt 0:10:17]} Qf6 {[%emt 0:03:17]} 11. Nh4 {[%emt 0:11:05]} f4 {[%emt 0:00:14]} 12. Qf3 {[%emt 0:00:47]} (12. Qb3 $18) 12... Be7 {[%emt 0:00:05]} 13. Qxf4 {[%emt 0:09:44]} (13. exf4 {looks sharper.} Qxd4 14. O-O-O Bxh4 15. Rhe1+) 13... Qxf4 {[%emt 0:00:05]} 14. exf4 {[%emt 0:00:02]} Bxh4 {[%emt 0:00:10]} 15. gxh4 {[%emt 0:00:03]} Nd7 {[%emt 0:01:54]} 16. Kd2 {[%emt 0:02:25]} Ke7 {[%emt 0:01:05]} 17. Ne2 {[%emt 0:05:43]} (17. Rae1+ {keeps more tension.} Kd6 18. Ne2 Nf6 19. Ng3) 17... c5 {[%emt 0:02:56]} 18. Rhg1 {[%emt 0:03:34]} c4 {[%emt 0:01:55]} 19. Bc2 {[%emt 0:03:00]} Nf6 {[%emt 0:00:05]} 20. f5 {[%emt 0:08:11]} (20. Ng3 $16) 20... b5 {[%emt 0:01:59]} 21. f3 {[%emt 0:07:05]} (21. Nf4 $14 {might be stronger.}) 21... Bd7 $11 {[%emt 0:02:06]} 22. Nf4 {[%emt 0:00:33][%cal Be2f4,Bf4h3,Bh3f2,Bf2g4][%mdl 32]} Rhg8 {[%emt 0:00:16]} 23. Rg3 {[%emt 0:03:38]} a5 {[%emt 0:01:31]} 24. Rag1 {[%emt 0:06:05]} Bc6 {[%emt 0:00:42]} 25. Nh3 {[%emt 0:07:08]} b4 {[%emt 0:00:35]} (25... Bd7 $11 {deserves consideration.}) 26. Nf2 $1 $14 {[%emt 0:00:55]} Rgc8 {[%emt 0:05:37]} 27. Ng4 {[%emt 0:02:00]} c3+ {[%emt 0:01:16]} ({Black should try} 27... Nxg4 $14 28. fxg4 Kd6) 28. bxc3 $16 {[%emt 0:01:02]} bxc3+ {[%emt 0:00:04]} 29. Kc1 {[%emt 0:00:28]} Nh5 {[%emt 0:00:12]} 30. Re1+ {[%emt 0:00:25]} Kf8 {[%emt 0:07:21]} 31. Rgg1 {[%emt 0:01:06]} (31. Nxh6 $2 Nxg3 32. hxg3 Re8 $19) 31... Re8 {[%emt 0:02:48]} 32. Nxh6 {[%emt 0:01:24][%csl Gh6][%cal Rg1g8]} Rxe1+ {[%emt 0:00:08]} 33. Rxe1 {[%emt 0:00:02]} Nf4 {[%emt 0:00:34]} 34. Ng4 {[%emt 0:03:38]} Bb5 {[%emt 0:01:21]} 35. Re5 {[%emt 0:06:52]} (35. f6 $142) 35... Rb8 {[%emt 0:01:28]} 36. Nf6 {[%emt 0:01:18]} Rd8 {[%emt 0:02:56]} 37. Kd1 {[%emt 0:01:27]} (37. a4 $16 Ba6 38. Kd1) 37... Rd6 $1 $11 {[%emt 0:02:40]} 38. Ng4 {[%emt 0:00:59]} f6 {[%emt 0:02:21]} 39. Re3 {[%emt 0:01:45]} Rc6 {[%emt 0:00:08]} 40. a4 {[%emt 0:01:37]} Ba6 {[%emt 0:00:10]} 41. h5 {[%emt 0:25:19] And now h6 would win.} Nxh5 {[%emt 0:00:16]} 42. Bb3 {[%emt 0:13:58]} Nf4 {[%emt 0:00:34][%cal Of4e2]} 43. Kc2 $2 {[%emt 0:00:38][%mdl 8192]} (43. h4 $11) 43... Ne2 $1 $19 {[%emt 0:00:24]} 44. Bxd5 {[%emt 0:02:14]} Nxd4+ {[%emt 0:00:19]} 45. Kc1 {[%emt 0:00:05]} Rd6 {[%emt 0:02:10]} 46. Be4 {[%emt 0:01:12] [#]} Ne2+ $1 {[%emt 0:00:21]} 47. Kc2 $2 {[%emt 0:05:53]} (47. Rxe2 $19 Bxe2 48. Kc2) 47... Rd2+ {[%emt 0:00:07] Black mates.} 48. Kb1 {[%emt 0:00:04]} Rd1+ {[%emt 0:00:14]} 49. Kc2 {[%emt 0:00:47] [#]} Rc1+ $1 {[%emt 0:00:13]} 50. Kb3 {[%emt 0:00:24]} Nd4+ {[%emt 0:00:06] A wild game.  Weighted Error Value: White=0.32/Black=0.10 (very precise)} 0-1

[Event "4NCL 2021-22"]
[Site "England"]
[Date "2022.04.30"]
[Round "7.23"]
[White "Stoyanov, Viktor"]
[Black "Cooke, Suzie G."]
[Result "1-0"]
[ECO "E06"]
[WhiteElo "2323"]
[BlackElo "1915"]
[Annotator "TA"]
[PlyCount "73"]
[EventDate "2021.11.27"]
[EventType "team-tourn"]
[EventCountry "ENG"]
[SourceTitle "playchess.com"]
[Source "ChessBase"]
[SourceQuality "1"]
[TimeControl "40/6000+30:3000+30"]

{[%evp 15,73,40,58,59,62,47,58,59,53,66,68,43,52,51,64,66,54,20,53,22,19,12,25,0,11,5,10,13,18,0,48,30,97,61,86,48,58,17,17,21,68,69,82,75,168,187,170,168,162,104,361,356,346,341,473,472,458,457,610,601]} 1. Nf3 {[%emt 0:00:27]} d5 {[%emt 0:00:40]} 2. c4 {[%emt 0:00:18]} e6 {[%emt 0:01:49]} 3. g3 {[%emt 0:00:17]} Nf6 {[%emt 0:01:31]} 4. Bg2 {[%emt 0:00:11]} c5 {[%emt 0:02:28]} 5. O-O {[%emt 0:00:14]} Nc6 {[%emt 0:01:34]} 6. d4 {[%emt 0:03:50]} Be7 {[%emt 0:03:00]} 7. dxc5 {[%emt 0:00:19]} Bxc5 {[%emt 0:00:28]} 8. a3 {[%emt 0:00:30]} a5 {[%emt 0:07:12]} 9. cxd5 {[%emt 0:02:40] E06: Closed Catalan: Early deviations.} exd5 {[%emt 0:00:39]} 10. Bg5 {[%emt 0:00:15] was the old line (10.Nc3).} Be6 {[%emt 0:11:01]} 11. Qc2 {[%emt 0:03:40] White is slightly better.} Be7 {[%emt 0:05:35]} 12. Nc3 {[%emt 0:03:54] [#]} h6 $146 {[%emt 0:02:22]} ({Predecessor:} 12... d4 13. Rfd1 Qb6 14. Ne4 Bb3 15. Qd3 Bxd1 16. Rxd1 O-O 17. Nxf6+ Bxf6 18. Bxf6 gxf6 {½-½ (44) Suarez,R-Kusch,M ICCF email 2009}) 13. Bf4 {[%emt 0:00:27]} O-O {[%emt 0:01:52]} 14. Rfd1 {[%emt 0:10:49]} Qb6 {[%emt 0:08:18]} 15. Be3 {[%emt 0:05:59] Inhibits d4.} Qa6 {[%emt 0:01:43]} 16. h3 {[%emt 0:06:20]} a4 {[%emt 0:04:21]} 17. Qd3 {[%emt 0:05:24]} (17. Nd4 {keeps more tension.} Rfc8 18. Nf5 Bf8 19. g4) 17... Qxd3 {[%emt 0:06:04]} 18. Rxd3 {[%emt 0:01:51]} Na5 {[%emt 0:06:55]} 19. Rf1 {[%emt 0:13:14]} Nc4 {[%emt 0:03:48]} 20. Bc1 {[%emt 0:02:01]} Bc5 {[%emt 0:08:11]} 21. Nd4 {[%emt 0:00:47][%cal Bf3d4,Bd4b5,Bb5c3,Bc3e4][%mdl 32] Inhibits Bf5.} Rfd8 {[%emt 0:03:38]} 22. Kh2 {[%emt 0:03:17]} Ra6 {[%emt 0:04:29]} (22... Rd6 $11 {feels stronger.}) 23. f4 $14 {[%emt 0:00:47]} Bc8 {[%emt 0:03:30]} (23... Re8 $11) 24. g4 {[%emt 0:02:03]} Ne4 {[%emt 0:02:12]} 25. Ndb5 {[%emt 0:06:10]} Nxc3 {[%emt 0:00:20]} 26. Nxc3 {[%emt 0:00:09]} (26. Rxc3 $5 {[%cal Rf1d1]} Bb6 27. Rd1 $14) 26... d4 {[%emt 0:00:54]} 27. e3 {[%emt 0:00:19]} Rd7 {[%emt 0:03:07]} (27... Nxe3 $11 {might be stronger.} 28. Bxe3 Rad6) 28. Ne4 {[%emt 0:05:23]} Ba7 {[%emt 0:00:10][%cal Rc4e3] [#]} 29. exd4 {[%emt 0:01:23]} ({Of course not} 29. Rfd1 $6 Nxe3 30. Bxe3 dxe3 31. Rxd7 Bxd7 $15) 29... Rxd4 {[%emt 0:00:48]} (29... Rd8 $16) 30. Rxd4 {[%emt 0:01:47]} Bxd4 {[%emt 0:00:04]} 31. Rd1 {[%emt 0:00:10]} Bb6 {[%emt 0:00:43] [#]} 32. Bf1 {[%emt 0:00:17]} ({Better is} 32. Nc3 $1 $18) 32... Be6 $2 {[%emt 0:04:03][%mdl 8192] A mistake that costs the game.} (32... Bc7 $16) 33. f5 $18 {[%emt 0:00:12]} Bc7+ {[%emt 0:03:32]} 34. Kh1 {[%emt 0:00:14]} b5 {[%emt 0:01:03]} 35. fxe6 {[%emt 0:00:13] White is clearly winning.} Rxe6 {[%emt 0:00:05]} 36. Nc3 {[%emt 0:00:50]} Rf6 {[%emt 0:01:14]} 37. Nxb5 {[%emt 0:00:32] Weighted Error Value: White=0.12 (very precise) /Black=0.37} 1-0

[Event "4NCL 2021-22"]
[Site "England"]
[Date "2022.04.30"]
[Round "7.24"]
[White "Vijayakumar, Rishi"]
[Black "Golding, William"]
[Result "1-0"]
[ECO "B01"]
[WhiteElo "1800"]
[BlackElo "1686"]
[Annotator "NA RC COMBH"]
[PlyCount "65"]
[EventDate "2021.11.27"]
[EventType "team-tourn"]
[EventCountry "ENG"]
[SourceTitle "playchess.com"]
[Source "ChessBase"]
[SourceQuality "1"]
[TimeControl "40/6000+30:3000+30"]

1. e4 {[%emt 0:00:13]} d5 {[%emt 0:00:21]} 2. exd5 {[%emt 0:00:04]} Qxd5 {[%emt 0:00:12]} 3. Nc3 {[%emt 0:00:04]} Qa5 {[%emt 0:00:13]} 4. d4 {[%emt 0:00:14]} c6 {[%emt 0:00:12]} 5. Bc4 {[%emt 0:00:09]} Nf6 {[%emt 0:00:41]} 6. Bd2 {[%emt 0:00:41]} Qc7 {[%emt 0:00:20]} 7. Nf3 {[%emt 0:00:25]} Bg4 {[%emt 0:00:47]} 8. h3 {[%emt 0:00:34]} Bh5 {[%emt 0:01:25]} 9. g4 {[%emt 0:00:24]} Bg6 {[%emt 0:01:14]} 10. Ne5 {[%emt 0:00:24]} e6 {[%emt 0:04:48]} 11. f4 {[%emt 0:01:30]} Bd6 {[%emt 0:06:41]} 12. Qe2 {[%emt 0:02:17]} O-O {[%emt 0:06:52]} 13. h4 {[%emt 0:05:10]} Bxc2 {[%emt 0:03:25]} 14. Rc1 {[%emt 0:00:56]} b5 {[%emt 0:03:48]} 15. Bxb5 {[%emt 0:16:19]} cxb5 {[%emt 0:02:33]} 16. Nxb5 {[%emt 0:00:49]} Qb6 {[%emt 0:03:00]} 17. Rxc2 {[%emt 0:01:34]} a6 {[%emt 0:00:43]} 18. Nxd6 {[%emt 0:06:41]} Qxd6 {[%emt 0:00:35]} 19. Qc4 {[%emt 0:02:10]} Nbd7 {[%emt 0:04:04]} 20. Bb4 {[%emt 0:00:47]} Qb8 {[%emt 0:03:40]} 21. Bxf8 {[%emt 0:00:27]} Qxf8 {[%emt 0:01:42]} 22. g5 {[%emt 0:01:57]} Nxe5 {[%emt 0:00:34]} 23. fxe5 {[%emt 0:00:58]} Nd5 {[%emt 0:01:29]} 24. Qc5 {[%emt 0:01:49]} Qd8 {[%emt 0:01:12]} 25. a3 {[%emt 0:02:02]} Nf4 {[%emt 0:01:09]} 26. Qc7 {[%emt 0:05:08]} Qe8 {[%emt 0:01:08]} 27. O-O {[%emt 0:01:12]} Nd5 {[%emt 0:00:50]} 28. Qc6 {[%emt 0:01:43]} Qd8 {[%emt 0:00:51]} 29. Qb7 {[%emt 0:01:50]} Ne3 {[%emt 0:01:10]} 30. Qxf7+ {[%emt 0:02:03]} Kh8 {[%emt 0:00:26]} 31. Rc7 {[%emt 0:00:30]} Nf5 {[%emt 0:00:25]} 32. Rf4 {[%emt 0:01:00]} Qd5 {[%emt 0:02:04]} 33. Qd7 {[%emt 0:00:40]} 1-0